bitfinex/quotes_ETHUSD_20260314
["timestamp","ask_amount","ask_price","bid_price","bid_amount"]
[1773446400434,0.50124464,2092.1,2091.2,0.0011]
[1773446400931,0.50044464,2092.1,2091.2,0.0011]
[1773446401098,0.50044464,2092.1,2091.2,0.0003]
[1773446401620,0.49581942,2091.7,2090.5,0.0011]
[1773446402412,0.76287614,2091.7,2090.5,0.0011]
[1773446402735,0.49581942,2091.5,2090.5,0.0011]
[1773446403206,0.49581942,2091.5,2090.5,0.4565694]
[1773446404328,0.49581942,2091.5,2090.5,0.0011]
[1773446405034,0.49581942,2091.5,2090.3,0.0011]
[1773446405638,0.49581942,2091.3,2090.3,0.0011]
[1773446407649,0.49581942,2091.1,2090.3,0.0011]
[1773446407955,0.49581942,2091.0,2090.3,0.0011]
[1773446408123,0.49581942,2091.0,2089.6,0.0011]
[1773446408307,0.49581942,2091.0,2089.6,0.4565694]
[1773446408512,0.49581942,2090.9,2089.6,0.4565694]
[1773446408928,0.49581942,2090.8,2089.6,0.4565694]
[1773446409141,0.49581942,2090.8,2089.6,0.0011]
[1773446409349,0.49581942,2090.7,2089.6,0.0011]
[1773446409551,0.49581942,2090.4,2089.6,0.0011]
[1773446409852,0.49581942,2090.4,2089.0,0.4554694]
[1773446410524,0.49581942,2090.4,2089.2,0.4554694]
[1773446410849,0.49581942,2090.4,2088.7,2.06091358]
[1773446410850,0.49581942,2090.4,2089.4,0.4554694]
[1773446413028,0.49581942,2090.2,2089.5,0.4554694]
[1773446413223,0.49581942,2090.2,2089.5,0.50332773]
[1773446413746,0.49581942,2090.2,2089.3,1.65200099]
[1773446414353,0.49581942,2090.2,2089.1,0.909]
[1773446415038,0.49581942,2090.0,2089.1,0.909]
[1773446415641,0.49581942,2090.0,2089.7,0.0011]
[1773446415953,0.49581942,2090.0,2089.1,0.909]
[1773446416337,0.49581942,2090.0,2089.5,0.0011]
[1773446417263,1.19622948,2089.9,2089.5,0.4565694]
[1773446417640,1.19620218,2090.0,2089.5,0.4565694]
[1773446417965,1.6920216,2090.0,2089.5,0.4565694]
[1773446418160,0.49581942,2089.9,2089.5,0.4565694]
[1773446418461,0.49581942,2089.9,2089.5,0.0011]
[1773446419364,0.49581942,2089.7,2089.5,0.0011]
[1773446421844,1.19640122,2089.6,2089.5,0.0011]
[1773446422030,1.68056016,2089.6,2089.5,0.0011]
[1773446423558,0.48415894,2089.5,2089.2,0.0011]
[1773446424169,1.68067468,2089.4,2089.2,0.0011]
[1773446424373,1.68067468,2089.4,2088.6,6.01979396]
[1773446424374,0.48415894,2089.3,2088.4,0.47574484]
[1773446424561,0.48415894,2089.3,2088.3,1.197146]
[1773446424562,1.19651574,2089.4,2088.6,0.47574484]
[1773446424870,1.19651574,2089.4,2088.8,0.47574484]
[1773446425647,1.68067468,2089.4,2088.8,0.47574484]
[1773446426657,1.68067468,2089.4,2088.8,0.52361921]
[1773446427375,0.48415894,2089.3,2088.6,0.47574484]
[1773446427870,0.48415894,2089.3,2088.7,0.47574484]
[1773446429378,1.68078922,2089.2,2088.9,0.0011]
[1773446430573,1.19663028,2089.2,2088.9,0.0011]
[1773446430773,0.48415894,2089.1,2088.9,0.0011]
[1773446431292,1.75653167,2089.0,2088.9,0.0011]
[1773446431868,1.75653167,2089.0,2088.6,0.0011]
[1773446431869,0.55978682,2088.9,2088.6,0.0011]
[1773446432494,0.55978682,2089.1,2088.6,0.0011]
[1773446433375,1.19674485,2089.0,2088.6,0.0011]
[1773446434570,0.24088301,2089.3,2088.6,0.0011]
[1773446434768,1.75630256,2089.4,2088.6,0.0011]
[1773446435667,1.75630256,2089.4,2088.6,0.04897896]
[1773446435871,1.75630256,2089.4,2088.6,0.0011]
[1773446436400,1.99302893,2089.8,2088.6,0.04897896]
[1773446436601,1.43324211,2089.8,2088.6,0.04897896]
[1773446436802,1.19729349,2089.8,2088.6,0.04897896]
[1773446437183,1.19729349,2089.8,2088.6,0.0011]
[1773446437576,0.001,2089.8,2088.7,1.19691674]
[1773446437798,0.001,2089.8,2088.8,0.04787437]
[1773446439105,0.001,2089.8,2088.7,1.19691674]
[1773446439906,1.19728672,2089.8,2088.6,4.78876696]
[1773446441185,0.001,2089.8,2088.6,4.78876696]
[1773446441378,0.001,2089.8,2088.7,0.04787666]
[1773446441883,0.001,2089.8,2088.8,1.19685944]
[1773446442404,0.001,2089.8,2088.9,0.0011]
[1773446442701,0.001,2089.6,2089.0,1.645]
[1773446442873,0.001,2089.6,2089.1,0.0478675]
[1773446443908,0.001,2089.6,2089.0,1.645]
[1773446444078,0.001,2089.6,2089.1,1.19668756]
[1773446445903,0.001,2089.6,2089.2,0.04786521]
[1773446446288,0.001,2089.6,2089.3,1.19657301]
[1773446446606,0.001,2089.6,2089.4,0.04786062]
[1773446446904,0.001,2089.8,2089.3,1.19657301]
[1773446447690,0.56078682,2089.8,2089.0,1.645]
[1773446447883,0.56078682,2089.8,2089.1,1.19665086]
[1773446448789,0.55978682,2089.6,2089.1,1.19665086]
[1773446451017,1.7562453,2089.5,2089.0,2.84172875]
[1773446451398,0.55978682,2089.4,2089.0,1.645]
[1773446452310,0.55978682,2089.4,2088.9,0.0011]
[1773446453017,0.55978672,2089.6,2088.9,1.24576368]
[1773446454389,1.75711074,2089.8,2088.9,1.24576368]
[1773446454593,0.55978672,2089.7,2088.9,1.24576368]
[1773446454815,0.55978672,2089.7,2088.9,0.0011]
[1773446455117,0.55978672,2089.5,2088.9,1.7031]
[1773446455430,0.55978672,2089.5,2089.3,0.0011]
[1773446455628,0.001,2089.4,2088.9,1.7031]
[1773446455791,0.55978672,2089.3,2088.9,1.7031]
[1773446455992,0.55978672,2089.3,2089.0,0.0011]
[1773446457521,0.87228672,2089.1,2088.9,1.7031]
[1773446457921,1.19663028,2089.2,2088.9,1.7031]
[1773446459502,4.78652115,2089.3,2088.9,1.7031]
[1773446460798,1.19657301,2089.3,2088.9,1.7031]
[1773446461002,2.06928752,2089.4,2088.9,1.7031]
[1773446461727,0.001,2089.4,2089.0,0.04786979]
[1773446463936,0.001,2089.4,2089.1,1.19668756]
[1773446464131,0.001,2089.4,2089.2,0.04786521]
[1773446467021,0.001,2089.4,2089.3,1.19657301]
[1773446474341,0.001,2089.8,2089.3,1.19657301]
[1773446474524,0.001,2089.8,2089.4,1.77186062]
[1773446475854,0.87273672,2089.8,2089.5,1.19645848]
[1773446481821,0.001,2089.8,2089.6,0.04785604]
[1773446482525,0.001,2089.8,2089.6,0.04895604]
[1773446483250,0.001,2089.8,2089.6,0.0011]
[1773446483436,0.001,2089.8,2089.6,0.04895604]
[1773446483745,0.001,2089.8,2089.6,0.0011]
[1773446484453,0.87273672,2089.8,2089.6,0.0011]
[1773446487835,0.87273672,2089.8,2089.5,1.758]
[1773446488377,0.87118672,2089.7,2089.2,0.0011]
[1773446489845,1.19640122,2089.6,2089.2,0.0011]
[1773446490059,0.87118672,2089.5,2089.2,0.0011]
[1773446492354,0.87118672,2089.4,2089.2,0.0011]
[1773446495373,0.87118672,2089.4,2088.9,0.0011]
[1773446495374,0.87118672,2089.2,2088.9,0.0011]
[1773446496572,0.87118672,2089.2,2088.9,1.7121]
[1773446498778,4.78706298,2089.6,2088.9,0.0011]
[1773446498779,0.87118672,2089.0,2088.9,0.0011]
[1773446499782,0.87118672,2089.0,2087.9,1.722]
[1773446499950,0.87118672,2089.0,2088.4,0.0022]
[1773446500868,0.87118672,2088.8,2088.4,0.0022]
[1773446501589,0.87118672,2088.8,2088.1,1.19722381]
[1773446502080,0.87118672,2088.8,2088.0,1.19727325]
[1773446502279,0.87118672,2088.8,2088.1,0.0011]
[1773446502977,0.87063672,2088.6,2087.9,1.722]
[1773446505460,0.87063672,2088.4,2087.9,1.722]
[1773446506161,0.87063672,2088.4,2087.5,1.697]
[1773446506361,0.87063672,2088.5,2087.6,0.04790189]
[1773446507787,1.19708868,2088.4,2087.7,1.19749006]
[1773446508083,2.0677254,2088.4,2088.1,0.0011]
[1773446509385,0.87063672,2088.3,2088.1,0.0011]
[1773446510666,4.787682,2088.7,2088.1,0.0011]
[1773446510667,0.87063672,2088.9,2088.1,0.0011]
[1773446511562,0.87063672,2088.9,2088.2,1.578]
[1773446511770,0.87063672,2088.9,2088.3,0.04788584]
[1773446512470,2.06746818,2088.9,2088.4,1.19708868]
[1773446512684,2.0673191,2089.2,2088.4,1.19708868]
[1773446513584,0.87063672,2089.1,2088.4,1.19708868]
[1773446513766,0.87063672,2089.1,2088.2,2.77515662]
[1773446514286,0.87063672,2089.1,2088.2,1.578]
[1773446514458,0.87063672,2088.9,2088.2,1.578]
[1773446514657,0.87063672,2088.9,2088.2,2.77519644]
[1773446516892,0.87063672,2088.7,2088.2,1.578]
[1773446517087,0.87063672,2088.7,2088.2,2.77519754]
[1773446518880,0.87063672,2088.7,2088.2,1.578]
[1773446519082,0.87063672,2088.5,2088.2,1.578]
[1773446521506,2.06767878,2088.5,2088.2,1.578]
[1773446521708,2.06768174,2088.5,2088.2,1.578]
[1773446522484,0.87063672,2088.7,2088.2,2.77519329]
[1773446522698,0.87063672,2089.1,2088.3,0.04788584]
[1773446523575,0.87063672,2088.9,2088.2,1.578]
[1773446524205,0.87063672,2088.9,2088.3,0.04788584]
[1773446525109,0.87063672,2088.9,2088.2,2.77518676]
[1773446525805,0.87063672,2088.8,2088.3,1.687]
[1773446527693,0.87063672,2088.6,2088.3,1.687]
[1773446528000,0.87063672,2088.6,2088.1,1.7041]
[1773446528405,0.87063672,2088.6,2088.1,0.0011]
[1773446528883,0.87063672,2088.6,2088.1,0.04899042]
[1773446529683,0.87063672,2088.6,2088.1,0.0011]
[1773446529884,0.55813672,2088.4,2088.1,0.0011]
[1773446531392,0.55813672,2088.4,2087.9,0.0011]
[1773446532000,0.55758672,2088.2,2087.9,0.0011]
[1773446532512,1.75470522,2088.4,2087.9,0.0011]
[1773446532711,1.75469263,2088.4,2087.9,0.04899501]
[1773446533516,0.55758672,2088.3,2087.9,0.0011]
[1773446534026,1.75479005,2088.2,2087.9,0.0011]
[1773446534200,0.55758672,2088.1,2087.9,0.0011]
[1773446536094,1.19730294,2088.1,2087.9,0.0011]
[1773446536297,0.55758672,2088.0,2087.9,0.0011]
[1773446537493,0.001,2088.3,2087.9,0.04899501]
[1773446539633,0.001,2088.3,2087.9,1.24632469]
[1773446542214,1.1968597,2088.8,2087.9,1.24632469]
[1773446542421,0.55758672,2088.7,2087.9,1.24632469]
[1773446543910,1.75452529,2088.7,2087.9,1.24632469]
[1773446544106,1.19693857,2088.7,2087.9,1.24632469]
[1773446544315,0.55758672,2088.6,2087.9,1.24632469]
[1773446545920,0.55758672,2088.5,2087.9,1.24632469]
[1773446548443,0.55758672,2088.5,2088.1,0.0011]
[1773446548735,0.001,2088.4,2088.2,1.74]
[1773446549406,0.001,2088.4,2088.3,0.04788584]
[1773446550621,0.001,2088.4,2088.3,1.24503184]
[1773446552104,0.55858672,2089.3,2088.3,1.24503184]
[1773446552307,0.55758672,2089.2,2088.4,2.3535872]
[1773446552534,0.55758672,2089.2,2088.5,1.19703136]
[1773446552905,0.001,2089.3,2088.5,1.19703136]
[1773446553103,0.001,2089.3,2088.6,0.46917846]
[1773446553930,0.45600734,2089.3,2088.6,0.46917846]
[1773446554144,0.001,2089.3,2088.6,0.46917846]
[1773446554508,0.45500734,2089.2,2088.7,0.46917846]
[1773446554709,0.45500734,2089.2,2088.6,1.196967]
[1773446554710,0.45500734,2089.2,2088.2,1.74]
[1773446554927,0.45500734,2089.1,2088.1,2.94935865]
[1773446555134,0.45500734,2089.1,2088.1,3.41853711]
[1773446555344,0.45500734,2089.1,2088.1,2.22127846]
[1773446555509,0.45500734,2089.1,2088.1,3.4185347]
[1773446555705,0.45500734,2089.1,2088.1,1.7521]
[1773446556838,0.45500734,2088.9,2088.1,1.7521]
[1773446557140,0.40500734,2088.9,2088.1,1.7521]
[1773446558812,0.45500734,2088.7,2088.1,1.7521]
[1773446560448,0.45500734,2088.7,2088.3,0.0011]
[1773446560944,0.45500734,2088.5,2088.3,0.0011]
[1773446563023,1.65209602,2088.4,2088.3,0.0011]
[1773446566016,0.47242146,2088.3,2088.0,0.0011]
[1773446567452,0.47242146,2088.3,2087.8,0.0011]
[1773446567453,0.47242146,2088.1,2087.8,0.0011]
[1773446569379,0.47242146,2088.0,2087.8,0.0011]
[1773446572130,1.66976213,2088.0,2087.8,0.0011]
[1773446572462,0.48030071,2087.9,2087.8,0.0011]
[1773446575657,1.67767606,2087.9,2087.8,0.0011]
[1773446575843,0.48030071,2087.9,2087.8,0.0011]
[1773446576294,0.48030071,2087.8,2087.6,0.0011]
[1773446577278,0.48030071,2088.0,2087.6,0.46944372]
[1773446579377,1.19737535,2087.9,2087.6,0.46944372]
[1773446579874,1.67767606,2087.9,2087.6,0.46944372]
[1773446580068,1.67767606,2087.9,2087.6,0.0011]
[1773446580285,0.48030071,2087.8,2087.6,0.0011]
[1773446580483,0.48030071,2087.8,2087.4,0.46834372]
[1773446580649,1.19737535,2087.9,2087.4,0.46834372]
[1773446581050,1.67767606,2087.9,2087.4,0.46834372]
[1773446581476,0.48030071,2087.8,2087.4,0.46834372]
[1773446583689,1.67779077,2087.7,2087.4,0.46834372]
[1773446585728,1.6779055,2087.5,2087.3,0.0011]
[1773446585863,0.48030071,2087.5,2087.3,0.0011]
[1773446586063,1.67783462,2087.7,2087.6,0.0011]
[1773446588383,0.48030071,2087.6,2087.4,0.0011]
[1773446588886,0.48030071,2087.6,2087.1,0.0011]
[1773446590004,0.48030071,2087.4,2087.1,0.0011]
[1773446592967,0.48030071,2087.2,2087.1,0.0011]
[1773446593382,0.48030071,2087.2,2086.8,1.708]
[1773446594112,0.48030071,2087.2,2086.8,1.19799814]
[1773446594426,0.48030071,2087.7,2086.8,0.46834372]
[1773446594908,1.67768937,2087.9,2087.1,0.46834372]
[1773446595111,1.67768937,2087.9,2087.3,0.46834372]
[1773446595285,0.48030071,2087.9,2087.5,0.46834372]
[1773446596580,1.19737429,2088.0,2087.5,0.46834372]
[1773446597611,0.48030071,2088.0,2087.6,0.46834372]
[1773446598610,0.48030071,2088.0,2087.6,0.0011]
[1773446598783,0.001,2087.8,2087.6,0.0011]
[1773446601936,0.001,2087.8,2087.6,0.46662737]
[1773446602210,0.001,2088.1,2087.7,0.46552737]
[1773446603082,0.45380913,2088.1,2087.7,0.46552737]
[1773446604206,1.65110193,2088.1,2087.7,0.46552737]
[1773446604825,0.45280913,2088.0,2087.7,0.46552737]
[1773446606313,0.45280913,2088.0,2087.6,0.0011]
[1773446607306,0.45280913,2088.0,2087.6,0.46662737]
[1773446609217,0.001,2088.1,2087.7,0.46552737]
[1773446609414,0.45380913,2088.1,2087.6,1.19860682]
[1773446609813,0.45380913,2088.1,2087.6,1.66413419]
[1773446611837,0.45280913,2088.0,2087.6,1.66413419]
[1773446612542,0.001,2087.8,2087.6,1.66413419]
[1773446615247,0.001,2087.8,2087.7,0.46552737]
[1773446617920,0.001,2087.8,2087.7,1.66301743]
[1773446618746,1.64989681,2088.5,2087.8,0.46552737]
[1773446618944,1.64989681,2088.5,2087.8,0.51342467]
[1773446619145,0.45280913,2088.4,2087.8,0.46552737]
[1773446619726,0.45280913,2088.4,2088.0,0.46552737]
[1773446620050,0.31874975,2088.6,2088.1,0.46552737]
[1773446621020,1.64972926,2088.7,2088.1,0.46552737]
[1773446621456,0.45280913,2088.7,2088.1,0.46552737]
[1773446622026,0.45280913,2088.7,2088.3,0.46552737]
[1773446622336,0.45280913,2088.7,2088.4,1.75]
[1773446623032,0.45380913,2088.9,2088.4,2.21552737]
[1773446623224,0.001,2088.9,2088.5,0.46552737]
[1773446624658,0.001,2088.9,2088.6,0.46552737]
[1773446625955,0.001,2088.7,2088.6,0.46552737]
[1773446626434,0.001,2088.7,2088.4,6.53835378]
[1773446626435,0.001,2088.7,2088.4,1.75]
[1773446626639,0.001,2088.7,2088.5,0.45582522]
[1773446627360,0.001,2088.7,2088.4,2.9470886]
[1773446627531,0.001,2088.7,2088.5,0.45582522]
[1773446630466,0.001,2088.7,2088.6,0.45582522]
[1773446637063,1.65621949,2089.3,2088.7,0.48968504]
[1773446637549,0.45959776,2089.3,2088.7,0.48968504]
[1773446638065,0.45959776,2089.3,2088.9,0.48968504]
[1773446638234,1.65618068,2089.3,2089.0,1.755]
[1773446638659,0.45959776,2089.3,2089.0,1.755]
[1773446639168,1.65617717,2089.3,2089.0,1.755]
[1773446639538,1.65617717,2089.3,2089.0,2.24468504]
[1773446640274,0.001,2089.3,2089.1,0.48968504]
[1773446640449,0.45959776,2089.3,2089.1,1.19668756]
[1773446640644,0.45959776,2089.3,2089.0,3.44138383]
[1773446640965,0.45959776,2089.3,2089.0,2.24468504]
[1773446642139,0.001,2089.3,2089.0,3.44142035]
[1773446642339,0.001,2089.3,2089.1,0.48968504]
[1773446643345,0.001,2089.3,2089.2,1.19663028]
[1773446643542,0.001,2089.6,2089.3,0.48968504]
[1773446643866,0.001,2089.8,2089.4,0.48968504]
[1773446644066,0.0002,2089.8,2089.5,2.24168504]
[1773446644266,0.45859776,2090.1,2089.6,1.68607094]
[1773446644445,0.45859776,2090.1,2089.6,0.48968504]
[1773446644841,0.45859776,2090.1,2089.5,1.752]
[1773446645368,0.45859776,2090.1,2089.6,1.724]
[1773446647066,0.45859776,2089.9,2089.6,1.724]
[1773446649146,1.19600057,2090.3,2089.7,0.48968504]
[1773446649360,1.9735339,2090.4,2089.7,0.48968504]
[1773446649764,1.97356278,2090.4,2089.7,0.48968504]
[1773446650274,0.45859776,2090.3,2089.7,0.48968504]
[1773446651374,0.45859776,2090.3,2089.9,0.48968504]
[1773446651575,0.45859776,2090.5,2089.9,0.48968504]
[1773446652056,0.001,2090.2,2089.9,0.48968504]
[1773446653301,1.9474177,2090.9,2089.9,0.48968504]
[1773446653302,0.45859776,2090.8,2089.9,0.48968504]
[1773446653473,0.45859776,2090.6,2090.1,0.48968504]
[1773446654172,0.45859776,2090.6,2090.2,2.23068504]
[1773446654360,1.65432797,2090.8,2090.3,0.48968504]
[1773446654542,1.65433413,2090.8,2090.3,0.48968504]
[1773446655166,1.65432443,2090.8,2090.3,0.48968504]
[1773446655342,1.65431435,2090.8,2090.3,0.48968504]
[1773446655548,1.65431435,2090.8,2090.4,0.48968504]
[1773446657772,1.19571659,2090.8,2090.2,2.23068504]
[1773446658071,0.45859776,2090.7,2090.3,0.48968504]
[1773446660152,1.65442547,2090.7,2090.3,0.48968504]
[1773446660355,1.65442547,2090.7,2089.8,4.78512925]
[1773446660356,0.45859776,2090.5,2089.7,0.03319933]
[1773446660578,0.45859776,2090.2,2089.7,0.03319933]
[1773446660817,0.45859776,2090.0,2089.2,1.7271]
[1773446660978,0.45859776,2090.0,2089.3,1.69]
[1773446661274,1.19582771,2090.7,2089.2,0.0011]
[1773446661275,0.47829765,2089.6,2089.2,0.0011]
[1773446661482,0.47829765,2089.6,2089.0,0.0011]
[1773446661653,0.47829765,2089.4,2088.7,0.0011]
[1773446662056,0.47829765,2089.2,2088.7,0.0011]
[1773446663159,0.47829765,2089.2,2088.7,0.48718915]
[1773446663361,0.47829765,2089.2,2088.8,0.04787437]
[1773446665296,0.47829765,2089.2,2089.1,0.001]
[1773446665861,0.47829765,2089.6,2089.1,0.001]
[1773446666787,1.67475613,2089.5,2089.1,0.001]
[1773446667584,1.67475613,2089.5,2089.1,0.0488675]
[1773446668481,1.67475613,2089.5,2089.1,0.001]
[1773446668980,0.47829765,2089.5,2089.1,0.001]
[1773446669179,0.47829765,2089.6,2089.1,0.53495665]
[1773446669865,0.47829765,2089.6,2089.1,0.001]
[1773446670863,1.67475613,2089.5,2089.1,0.001]
[1773446671256,0.47829765,2089.4,2089.1,0.001]
[1773446674966,1.19645848,2089.5,2089.1,0.48708915]
[1773446675583,0.47829765,2089.4,2089.1,0.001]
[1773446675827,0.47829765,2089.4,2088.9,0.001]
[1773446676180,0.47829765,2089.2,2088.9,0.001]
[1773446678170,1.67498521,2089.1,2088.9,0.001]
[1773446680246,1.6750425,2089.0,2088.7,1.7121]
[1773446680527,0.47829765,2088.9,2088.7,1.7121]
[1773446682312,0.47829765,2089.1,2088.8,0.48608915]
[1773446683514,0.47829765,2089.1,2088.7,1.7121]
[1773446683690,0.47829765,2089.1,2088.7,0.0011]
[1773446683884,0.47829765,2089.0,2088.4,0.51935038]
[1773446684091,0.47829765,2088.8,2088.4,0.03326123]
[1773446684288,1.19683772,2088.9,2088.5,0.48608915]
[1773446684592,1.67506993,2089.0,2088.5,0.48608915]
[1773446685714,1.19677228,2089.0,2088.5,0.5339704]
[1773446686086,1.14857979,2089.0,2088.5,0.54341283]
[1773446686286,0.46807459,2088.9,2088.5,0.49553158]
[1773446686690,0.46807459,2088.9,2088.3,3.40674493]
[1773446686889,0.46807459,2088.9,2088.3,1.69374493]
[1773446687110,0.46807459,2088.9,2088.4,1.718]
[1773446687620,0.46807459,2088.9,2088.4,2.21353158]
[1773446688304,1.19685944,2088.8,2088.4,3.41060856]
[1773446688719,1.66491475,2088.9,2088.5,0.49553158]
[1773446689017,1.64019152,2088.9,2088.5,0.49553158]
[1773446691495,1.64019152,2088.9,2088.6,0.0011]
[1773446692826,1.63002802,2088.9,2088.6,0.0011]
[1773446693721,0.45876837,2088.8,2088.5,0.49553158]
[1773446693926,0.4554167,2088.8,2088.5,0.49553158]
[1773446694226,0.39743742,2088.8,2088.5,0.49553158]
[1773446694425,1.19691674,2088.7,2088.4,1.7191]
[1773446694728,0.45876837,2088.6,2088.4,1.7191]
[1773446695027,1.65568511,2088.7,2088.4,1.7191]
[1773446695400,1.65568511,2088.7,2088.3,0.47055213]
[1773446695597,0.45876837,2088.6,2088.3,0.47055213]
[1773446695997,0.45876837,2088.6,2088.3,0.0011]
[1773446696627,1.65577751,2088.6,2088.3,0.0011]
[1773446697636,1.19700914,2088.6,2088.2,0.46945213]
[1773446698114,1.65577751,2088.6,2088.2,0.46945213]
[1773446698512,1.52741209,2088.6,2088.2,0.46945213]
[1773446699004,0.45876837,2088.5,2088.2,0.46945213]
[1773446699536,0.44018023,2088.5,2088.2,0.46945213]
[1773446699710,0.43804511,2088.5,2088.2,0.46945213]
[1773446700223,0.4338091,2088.5,2088.2,0.46945213]
[1773446701124,1.21110104,2088.7,2088.2,1.19720194]
[1773446701423,1.65545593,2089.1,2088.3,0.46945213]
[1773446701597,1.65545593,2089.1,2088.5,0.46945213]
[1773446702396,1.19763368,2089.2,2088.5,0.46945213]
[1773446702597,0.45876837,2089.5,2088.6,0.46945213]
[1773446702827,1.19631442,2089.8,2088.8,0.46945213]
[1773446703019,1.19631442,2089.8,2089.0,0.46945213]
[1773446703218,1.19631442,2089.8,2089.2,0.46945213]
[1773446703713,1.19624043,2089.9,2089.2,0.46945213]
[1773446705130,5.24364815,2090.0,2089.3,0.46945213]
[1773446705429,0.45876837,2089.9,2089.4,1.728]
[1773446707431,1.19628672,2089.8,2089.4,1.728]
[1773446710125,1.19628672,2089.8,2089.4,2.19745213]
[1773446712910,1.65502251,2089.9,2089.5,0.46945213]
[1773446713109,1.1962867,2089.9,2089.5,0.46945213]
[1773446714141,0.45876837,2089.8,2089.4,1.728]
[1773446714633,1.19634397,2089.7,2089.4,2.19745213]
[1773446716740,1.65510264,2089.8,2089.4,2.19745213]
[1773446718619,0.001,2089.6,2089.4,2.19745213]
[1773446721819,0.001,2089.6,2089.5,0.46568975]
[1773446722026,0.4608002,2090.0,2089.5,0.46568975]
[1773446723641,1.65702968,2089.9,2089.5,0.46568975]
[1773446726650,1.65700181,2090.0,2089.5,0.46568975]
[1773446728457,0.4608002,2089.9,2089.5,0.46568975]
[1773446730246,0.4608002,2089.9,2089.6,0.46568975]
[1773446730560,0.4608002,2090.1,2089.6,0.46568975]
[1773446731256,4.78423577,2090.2,2089.7,0.46568975]
[1773446731464,5.24503597,2090.2,2089.7,0.46568975]
[1773446731837,0.4608002,2090.1,2089.7,0.46568975]
[1773446732245,0.4608002,2090.4,2089.7,0.46568975]
[1773446732460,0.4608002,2090.2,2089.7,0.46568975]
[1773446733245,0.4608002,2090.2,2089.5,0.46568975]
[1773446733457,0.4608002,2090.2,2089.4,1.7291]
[1773446733458,0.4608002,2090.2,2089.4,2.19478975]
[1773446733670,0.4608002,2089.9,2089.4,2.19478975]
[1773446734070,0.4608002,2089.9,2089.4,1.7291]
[1773446734544,0.4608002,2089.6,2089.1,0.46678975]
[1773446735142,0.4608002,2089.6,2089.1,0.0011]
[1773446736677,0.4608002,2089.6,2089.0,0.0311707]
[1773446736678,0.4608002,2089.2,2088.9,0.0011]
[1773446737379,0.4608002,2089.2,2088.7,2.19578975]
[1773446738086,0.4608002,2089.2,2088.7,1.7301]
[1773446738551,0.4608002,2089.0,2088.7,1.7301]
[1773446742287,0.4608002,2089.0,2088.7,2.19578975]
[1773446742775,1.19668756,2089.1,2088.8,0.46568975]
[1773446743590,1.65746826,2089.2,2088.8,0.46568975]
[1773446745576,0.4608002,2089.1,2088.8,0.46568975]
[1773446746490,0.4608002,2089.1,2089.0,0.0011]
[1773446746695,0.4608002,2089.1,2088.7,1.7301]
[1773446746873,0.4608002,2089.1,2088.7,2.19786237]
[1773446747195,0.4608002,2089.1,2088.8,0.46886237]
[1773446748075,0.49780183,2089.2,2088.8,0.46886237]
[1773446749095,1.19663283,2089.2,2088.8,0.46886237]
[1773446749295,0.49780183,2089.1,2088.8,0.46886237]
[1773446750499,0.49780183,2089.1,2088.8,0.0011]
[1773446752196,0.49780183,2089.1,2088.7,0.0011]
[1773446752499,0.48727588,2089.0,2088.7,0.0011]
[1773446753275,0.48727588,2089.0,2088.7,1.19801487]
[1773446753605,0.48727588,2089.0,2088.7,0.0011]
[1773446753784,0.48727588,2089.2,2088.7,0.46721887]
[1773446755721,0.48727588,2089.2,2088.8,1.19685944]
[1773446756022,0.48727588,2089.1,2088.7,1.66408889]
[1773446758118,0.48727588,2089.1,2088.8,0.46611887]
[1773446759923,0.48727588,2089.1,2088.9,0.0011]
[1773446760140,1.94833628,2089.5,2088.9,1.19790214]
[1773446760296,0.48727588,2089.6,2089.0,0.46611887]
[1773446760496,0.48727588,2089.3,2088.9,1.19790214]
[1773446760993,0.48727588,2089.3,2088.7,0.46721887]
[1773446761212,0.48727588,2089.3,2088.7,1.19797003]
[1773446761413,0.48727588,2089.3,2088.7,1.6640889]
[1773446761824,0.48727588,2089.3,2088.8,1.726]
[1773446762625,0.48727588,2089.2,2088.8,2.9228257]
[1773446764023,0.48727588,2089.2,2088.8,3.38894457]
[1773446767936,0.48727588,2089.6,2088.9,0.46611887]
[1773446768117,0.48727588,2089.6,2088.9,0.51399095]
[1773446769735,0.48727588,2089.6,2088.9,0.46611887]
[1773446771838,0.48727588,2089.6,2089.0,1.19674485]
[1773446772016,0.48727588,2089.6,2089.0,1.66286372]
[1773446772619,0.48727588,2089.6,2089.1,0.46611887]
[1773446773037,0.001,2089.4,2089.1,0.46611887]
[1773446773710,0.48727588,2089.7,2089.3,0.46611887]
[1773446774040,0.48727588,2089.7,2089.4,2.20611887]
[1773446776136,0.48727588,2089.7,2089.1,4.78652115]
[1773446776137,0.48727588,2089.6,2089.0,1.66390643]
[1773446776312,0.48727588,2089.6,2089.1,4.78658462]
[1773446776714,0.48727588,2089.6,2089.1,5.25270349]
[1773446777025,0.48727588,2090.0,2089.2,0.51398408]
[1773446777416,0.48727588,2090.0,2089.4,0.46611887]
[1773446778218,0.48727588,2089.9,2089.5,1.19645848]
[1773446779238,0.48727588,2089.9,2089.5,1.66257735]
[1773446779637,0.48727588,2089.9,2089.6,0.46611887]
[1773446780445,0.48727588,2089.9,2089.6,1.6624757]
[1773446780740,0.48727588,2089.9,2089.5,1.66253521]
[1773446785528,1.19617843,2090.0,2089.5,1.19641634]
[1773446785725,1.64752115,2090.0,2089.6,0.46452859]
[1773446786255,0.001,2089.8,2089.6,0.46452859]
[1773446788255,0.001,2089.8,2089.7,0.46452859]
[1773446795236,0.45134272,2090.1,2089.7,0.46452859]
[1773446795646,1.64749864,2090.1,2089.7,0.46452859]
[1773446800150,0.45134272,2090.2,2089.8,0.46452859]
[1773446800350,0.45134272,2090.3,2089.8,0.46452859]
[1773446801257,0.001,2090.4,2090.0,0.46452859]
[1773446801464,1.1969496,2090.4,2090.0,0.46452859]
[1773446801640,0.001,2090.4,2090.0,0.46452859]
[1773446803526,0.001,2090.4,2090.1,0.46452859]
[1773446805866,0.001,2090.4,2090.2,0.45902947]
[1773446813849,0.001,2090.4,2090.3,0.45148172]
[1773446816045,0.002,2090.6,2090.3,0.45148172]
[1773446816354,0.48190657,2090.6,2090.3,0.45148172]
[1773446817072,0.48190657,2090.6,2090.3,1.64748163]
[1773446817572,0.48190657,2090.6,2090.3,0.45148172]
[1773446818185,0.48190657,2090.6,2090.3,1.6474767]
[1773446818362,0.48190657,2090.6,2090.3,0.45148172]
[1773446818681,1.6777498,2090.6,2090.3,0.45148172]
[1773446819471,0.48190657,2090.6,2090.3,0.45148172]
[1773446820182,1.67775295,2090.6,2090.3,0.45148172]